fUST/lending_fUST_20250124
["ID","MTS","AMOUNT","RATE_DAILY","PERIOD"]
[350154952,1737659446506,-500.0,0.00019178,2]
[350154954,1737659446515,-151.0,0.00019178,2]
[350154955,1737659446524,-151.0,0.00019178,2]
[350154957,1737659446533,-151.0,0.00019178,2]
[350154958,1737659446543,-500.0,0.00019178,2]
[350154960,1737659446552,-151.0,0.00019178,2]
[350154962,1737659446564,-500.0,0.00019178,2]
[350154963,1737659446574,-500.0,0.00019178,2]
[350154965,1737659446583,-248.94755676,0.00019178,2]
[350154966,1737659446592,-9557.53,0.00019178,2]
[350154968,1737659446602,-500.0,0.00019178,2]
[350154970,1737659446611,-500.0,0.00019178,2]
[350154971,1737659446620,-502.47883015,0.00019178,2]
[350154973,1737659446630,-501.47475621,0.00019178,2]
[350154975,1737659446640,-1406.56,0.00019178,2]
[350154976,1737659446648,-500.0,0.00019178,2]
[350154978,1737659446658,-507.44729102,0.00019178,2]
[350154980,1737659446668,-500.0,0.00019178,2]
[350154981,1737659446677,-500.0,0.00019178,2]
[350154983,1737659446686,-1487.43,0.00019178,2]
[350154985,1737659446696,-501.57378649,0.00019178,2]
[350154986,1737659446705,-500.0,0.00019178,2]
[350154988,1737659446714,-500.0,0.00019178,2]
[350154990,1737659446724,-500.0,0.00019178,2]
[350154991,1737659446734,-351.16,0.00019178,2]
[350154993,1737659446743,-501.51787242,0.00019178,2]
[350154995,1737659446752,-500.0,0.00019178,2]
[350154996,1737659446769,-500.0,0.00019178,2]
[350154998,1737659446779,-500.0,0.00019178,2]
[350155000,1737659446788,-794.24,0.00019178,2]
[350155001,1737659446799,-500.0,0.00019178,2]
[350155003,1737659446808,-501.10364396,0.00019178,2]
[350155005,1737659446818,-500.0,0.00019178,2]
[350155007,1737659446827,-502.89869813,0.00019178,2]
[350155008,1737659446837,-500.0,0.00019178,2]
[350155010,1737659446846,-500.0,0.00019178,2]
[350155012,1737659446856,-500.0,0.00019178,2]
[350155013,1737659446866,-2009.8,0.00019178,2]
[350155015,1737659446876,-500.0,0.00019178,2]
[350155017,1737659446886,-500.0,0.00019178,2]
[350155019,1737659446895,-640.22,0.00019178,2]
[350155020,1737659446905,-500.0,0.00019178,2]
[350155022,1737659446914,-4104.97,0.00019178,2]
[350155024,1737659446924,-500.0,0.00019178,2]
[350155026,1737659446933,-500.0,0.00019178,2]
[350155028,1737659446943,-500.0,0.00019178,2]
[350155029,1737659446952,-500.0,0.00019178,2]
[350155031,1737659446962,-500.0,0.00019178,2]
[350155033,1737659446971,-634.83,0.00019178,2]
[350155035,1737659446980,-500.0,0.00019178,2]
[350155036,1737659446989,-351.65239499,0.00019178,2]
[350155038,1737659446998,-500.0,0.00019178,2]
[350155040,1737659447010,-503.46073498,0.00019178,2]
[350155042,1737659447019,-500.0,0.00019178,2]
[350155043,1737659447028,-503.78037635,0.00019178,2]
[350155045,1737659447037,-500.0,0.00019178,2]
[350155047,1737659447047,-500.0,0.00019178,2]
[350155049,1737659447056,-500.0,0.00019178,2]
[350155051,1737659447067,-500.0,0.00019178,2]
[350155052,1737659447077,-500.0,0.00019178,2]
[350155054,1737659447086,-500.0,0.00019178,2]
[350155056,1737659447095,-500.0,0.00019178,2]
[350155058,1737659447104,-500.0,0.00019178,2]
[350155059,1737659447113,-500.0,0.00019178,2]
[350155061,1737659447122,-500.0,0.00019178,2]
[350155063,1737659447131,-500.0,0.00019178,2]
[350155064,1737659447140,-500.0,0.00019178,2]
[350155066,1737659447149,-500.0,0.00019178,2]
[350155068,1737659447159,-500.0,0.00019178,2]
[350155070,1737659447168,-500.0,0.00019178,2]
[350155072,1737659447178,-151.0,0.00019178,2]
[350155073,1737659447187,-151.0,0.00019178,2]
[350155075,1737659447197,-151.0,0.00019178,2]
[350155077,1737659447206,-151.0,0.00019178,2]
[350155079,1737659447215,-151.0,0.00019178,2]
[350155081,1737659447224,-151.0,0.00019178,2]
[350155082,1737659447234,-500.0,0.00019178,2]
[350155084,1737659447243,-151.0,0.00019178,2]
[350155086,1737659447252,-500.0,0.00019178,2]
[350155088,1737659447262,-500.0,0.00019178,2]
[350155089,1737659447271,-1005.24,0.00019178,2]
[350155091,1737659447280,-500.0,0.00019178,2]
[350155093,1737659447290,-500.0,0.00019178,2]
[350155095,1737659447304,-500.0,0.00019178,2]
[350155097,1737659447313,-500.0,0.00019178,2]
[350155099,1737659447322,-500.0,0.00019178,2]
[350155100,1737659447337,-500.0,0.00019178,2]
[350155102,1737659447349,-500.0,0.00019178,2]
[350155104,1737659447358,-1533.43,0.00019178,2]
[350155106,1737659447367,-500.0,0.00019178,2]
[350155107,1737659447377,-416.5800821,0.00019178,2]
[350155109,1737659447386,-353.9568139,0.00019178,2]
[350155111,1737659447396,-353.9568139,0.00019178,2]
[350155113,1737659447405,-170.704701,0.00019178,2]
[350155115,1737659447418,-167.556757,0.00019178,2]
[350155116,1737659447428,-1033.1667515,0.00019178,11]
[350155118,1737659447437,-302.90913937,0.0001919,2]
[350155120,1737659447446,-302.90913937,0.0001919,2]
[350155122,1737659447456,-500.0,0.00019268,3]
[350155123,1737659447465,-500.0,0.00019268,3]
[350155125,1737659447474,-500.0,0.00019269,3]
[350155127,1737659447483,-594.73616604,0.0001931,3]
[350155129,1737659447493,-500.0,0.00019313,3]
[350155130,1737659447502,-500.0,0.00019313,3]
[350155132,1737659447512,-500.0,0.00019313,3]
[350155134,1737659447522,-500.0,0.00019313,3]
[350155136,1737659447533,-228.4471342,0.00019314,3]
[350155138,1737659447548,-500.0,0.00019314,2]
[350155140,1737659447557,-500.0,0.00019314,3]
[350155141,1737659447567,-500.0,0.00019314,3]
[350155143,1737659447577,-512.093795,0.00019314,3]
[350155145,1737659447587,-500.0,0.00019314,3]
[350155147,1737659447597,-500.0,0.00019314,3]
[350155149,1737659447606,-445.42346254,0.00019314,3]
[350155150,1737659447616,-500.0,0.00019314,3]
[350155159,1737659447693,-500.0,0.00019314,3]
[350155161,1737659447710,-500.0,0.00019314,3]
[350155163,1737659447720,-500.0,0.00019314,3]
[350155165,1737659447729,-356.53040088,0.00019314,3]
[350155167,1737659447742,-160.0,0.00019314,2]
[350155169,1737659447757,-500.0,0.00019315,3]
[350155171,1737659447767,-500.0,0.00019315,3]
[350155173,1737659447777,-953.64,0.00019315,3]
[350155175,1737659447786,-500.0,0.00019315,3]
[350155176,1737659447795,-500.0,0.00019315,3]
[350155177,1737659447805,-152.356257,0.00019315,2]
[350155178,1737659447815,-500.0,0.00019315,3]
[350155179,1737659447824,-151.964067,0.00019315,2]
[350155180,1737659447834,-500.0,0.00019315,3]
[350155181,1737659447844,-151.918599,0.00019315,2]
[350155182,1737659447854,-500.0,0.00019315,3]
[350155184,1737659447863,-500.0,0.00019315,3]
[350155186,1737659447873,-500.0,0.00019315,3]
[350155187,1737659447882,-500.0,0.00019315,3]
[350155188,1737659447891,-606.73120865,0.00019315,3]
[350155189,1737659447900,-500.0,0.00019315,3]
[350155190,1737659447909,-500.0,0.00019315,3]
[350155191,1737659447919,-507.11615498,0.00019315,3]
[350155192,1737659447928,-500.0,0.00019315,3]
[350155193,1737659447937,-500.0,0.00019315,3]
[350155194,1737659447947,-500.0,0.00019315,3]
[350155195,1737659447957,-495.0,0.00019315,3]
[350155196,1737659447966,-500.0,0.00019315,3]
[350155197,1737659447975,-500.0,0.00019315,3]
[350155198,1737659447985,-500.0,0.00019315,3]
[350155199,1737659447995,-500.0,0.00019315,3]
[350155200,1737659448006,-500.0,0.00019315,3]
[350155201,1737659448016,-500.0,0.00019315,3]
[350155202,1737659448026,-500.0,0.00019315,3]
[350155203,1737659448036,-525.87599326,0.00019315,3]
[350155204,1737659448046,-500.0,0.00019315,3]
[350155205,1737659448057,-500.0,0.00019315,3]
[350155206,1737659448067,-500.0,0.00019315,3]
[350155207,1737659448077,-500.0,0.00019315,3]
[350155208,1737659448086,-500.0,0.00019315,3]
[350155209,1737659448096,-500.0,0.00019315,3]
[350155210,1737659448105,-500.0,0.00019315,3]
[350155211,1737659448115,-500.0,0.00019315,3]
[350155212,1737659448124,-500.0,0.00019315,3]
[350155214,1737659448134,-500.0,0.00019315,3]
[350155216,1737659448143,-500.0,0.00019315,3]
[350155217,1737659448152,-500.0,0.00019315,3]
[350155219,1737659448161,-503.13950756,0.00019315,3]
[350155221,1737659448170,-500.0,0.00019315,3]
[350155223,1737659448180,-500.0,0.00019315,3]
[350155225,1737659448189,-500.0,0.00019315,3]
[350155228,1737659448200,-500.0,0.00019315,3]
[350155230,1737659448209,-500.0,0.00019315,3]
[350155231,1737659448219,-500.0,0.00019315,3]
[350155233,1737659448230,-500.0,0.00019315,3]
[350155235,1737659448240,-500.0,0.00019315,3]
[350155237,1737659448249,-500.0,0.00019315,3]
[350155239,1737659448261,-500.0,0.00019315,3]
[350155241,1737659448270,-500.0,0.00019315,3]
[350155244,1737659448280,-500.0,0.00019315,3]
[350155246,1737659448292,-500.0,0.00019315,3]
[350155248,1737659448301,-500.0,0.00019315,3]
[350155250,1737659448310,-504.49697437,0.00019315,3]
[350155252,1737659448319,-500.0,0.00019315,3]
[350155253,1737659448330,-500.0,0.00019315,3]
[350155255,1737659448342,-500.0,0.00019315,3]
[350155257,1737659448352,-500.0,0.00019315,3]
[350155260,1737659448362,-500.0,0.00019315,3]
[350155262,1737659448371,-500.0,0.00019315,3]
[350155264,1737659448381,-500.0,0.00019315,3]
[350155266,1737659448391,-500.0,0.00019315,3]
[350155268,1737659448400,-500.0,0.00019315,3]
[350155269,1737659448410,-208.46050882,0.00019315,3]
[350155270,1737659448423,-500.0,0.00019315,3]
[350155271,1737659448434,-151.0,0.00019315,2]
[350155272,1737659448444,-151.0,0.00019315,2]
[350155273,1737659448454,-151.0,0.00019315,2]
[350155274,1737659448463,-500.0,0.00019315,3]
[350155275,1737659448473,-500.0,0.00019315,3]
[350155276,1737659448483,-151.0,0.00019315,2]
[350155277,1737659448492,-183.0,0.00019315,2]
[350155278,1737659448503,-500.0,0.00019315,3]
[350155279,1737659448514,-500.0,0.00019315,3]
[350155280,1737659448524,-500.0,0.00019315,3]
[350155281,1737659448534,-500.0,0.00019315,3]
[350155282,1737659448544,-459.42534662,0.00019315,3]
[350155283,1737659448560,-40.57465338,0.00019315,3]
[350155284,1737659448570,-500.0,0.00019315,3]
[350155285,1737659448580,-203.518648,0.00019315,3]
[350155286,1737659448592,-296.481352,0.00019315,3]
[350155287,1737659448602,-500.0,0.00019315,3]
[350155288,1737659448612,-127.4766494,0.00019315,3]
[350155289,1737659448748,-326.11538359,0.00019315,3]
[350155290,1737659448766,-500.0,0.00019315,3]
[350155291,1737659448777,-500.0,0.00019315,3]
[350155293,1737659448787,-173.38060431,0.00019315,3]
[350155324,1737659449121,-500.0,0.00019178,2]
[350155326,1737659449131,-500.0,0.00019178,2]
[350155328,1737659449141,-500.0,0.00019178,2]
[350155331,1737659449154,-326.61939569,0.00019315,3]
[350155333,1737659449164,-500.0,0.00019315,3]
[350155335,1737659449175,-466.65300637,0.00019315,3]
[350155337,1737659449187,-97.01529121,0.00019315,3]
[350155339,1737659449197,-500.0,0.00019315,3]
[350155341,1737659449206,-500.0,0.00019315,3]
[350155343,1737659449216,-120.55006568,0.00019315,3]
[350155346,1737659449235,-379.44993432,0.00019315,3]
[350155348,1737659449244,-509.92225039,0.00019315,3]
[350155350,1737659449255,-149.42781529,0.00019315,3]
[350155352,1737659449269,-350.57218471,0.00019315,3]
[350155354,1737659449279,-512.04760966,0.00019315,3]
[350155356,1737659449288,-500.0,0.00019315,3]
[350155358,1737659449299,-500.0,0.00019315,3]
[350155360,1737659449308,-500.0,0.00019315,3]
[350155362,1737659449318,-500.0,0.00019315,3]
[350155364,1737659449328,-500.0,0.00019315,3]
[350155366,1737659449340,-500.0,0.00019315,3]
[350155368,1737659449354,-500.0,0.00019315,3]
[350155370,1737659449364,-500.0,0.00019315,3]
[350155372,1737659449375,-500.0,0.00019315,3]
[350155375,1737659449386,-500.0,0.00019315,3]
[350155376,1737659449396,-500.0,0.00019315,3]
[350155378,1737659449407,-277.57520791,0.00019315,3]
[350155380,1737659449416,-575.35366207,0.00019315,3]
[350155382,1737659449425,-500.0,0.00019315,3]
[350155384,1737659449435,-500.0,0.00019315,3]
[350155386,1737659449445,-500.0,0.00019315,3]
[350155389,1737659449455,-500.0,0.00019315,3]
[350155391,1737659449465,-500.0,0.00019315,3]
[350155393,1737659449475,-500.0,0.00019315,3]
[350155395,1737659449485,-313.00464067,0.00019315,3]
[350155397,1737659449497,-186.99535933,0.00019315,3]
[350155399,1737659449509,-501.89090445,0.00019315,3]
[350155401,1737659449519,-500.0,0.00019315,3]
[350155403,1737659449528,-501.74563648,0.00019315,3]
[350155405,1737659449538,-500.0,0.00019315,3]
[350155414,1737659449612,-500.0,0.00019315,3]
[350155416,1737659449630,-500.0,0.00019315,3]
[350155418,1737659449640,-500.0,0.00019315,3]
[350155420,1737659449650,-500.0,0.00019315,3]
[350155422,1737659449659,-500.0,0.00019315,3]
[350155424,1737659449668,-500.0,0.00019315,3]
[350155426,1737659449678,-500.0,0.00019315,3]
[350155428,1737659449687,-38.61548583,0.00019315,3]
[350157156,1737659540477,398.10563,0.00013973,2]
[350157166,1737660157802,300.0,0.00015056,2]
[350157180,1737660425289,-174.27079287,0.00016121,2]
[350157181,1737660425311,-174.27079287,0.00016284,2]
[350157182,1737660425332,-250.0,0.00016782,2]
[350157183,1737660425353,-310.76411918,0.00017128,2]
[350157186,1737660467797,378.200348,0.00013973,2]
[350157218,1737660571127,-986.68849818,0.00016956,2]
[350157219,1737660571148,-3694.79295638,0.00017027,2]
[350157220,1737660571169,-300.0,0.00017127,2]
[350157221,1737660571301,-15322.77180482,0.00017128,2]
[350157222,1737660571323,-195.36363,0.00017808,2]
[350157224,1737660598788,237.10436,0.0001775,2]
[350157262,1737660632317,-300.0,0.00017929,2]
[350157264,1737660632327,-24900.0,0.0001793,2]
[350157266,1737660632336,-11610.3734811,0.00018253,2]
[350157268,1737660632345,-434.985,0.0001834,2]
[350157271,1737660632357,-159.09537386,0.00018602,2]
[350157274,1737660632367,-11610.3734811,0.00018622,2]
[350157276,1737660632376,-11610.3734811,0.00018805,2]
[350157278,1737660632385,-965.41687124,0.000189,2]
[350157280,1737660632395,-250.53688382,0.00018989,2]
[350157281,1737660632404,-3440.06619966,0.0001899,2]
[350157282,1737660632413,-500.0,0.00018999,2]
[350157283,1737660632422,-500.0,0.00018999,2]
[350157284,1737660632431,-189.13752448,0.00018999,2]
[350157285,1737660632441,-500.0,0.00018999,2]
[350157286,1737660632451,-500.0,0.00018999,2]
[350157287,1737660632460,-500.0,0.00018999,2]
[350157288,1737660632470,-500.0,0.00018999,2]
[350157289,1737660632479,-500.0,0.00018999,2]
[350157290,1737660632488,-500.0,0.00018999,2]
[350157291,1737660632497,-500.0,0.00018999,2]
[350157292,1737660632507,-500.0,0.00018999,2]
[350157293,1737660632516,-500.0,0.00018999,2]
[350157294,1737660632525,-647.60036478,0.00018999,2]
[350157295,1737660632536,-500.0,0.00018999,2]
[350157296,1737660632546,-500.0,0.00018999,2]
[350157297,1737660632555,-500.0,0.00018999,2]
[350157298,1737660632563,-587.38809,0.00018999,2]
[350157299,1737660632573,-445.24185672,0.00018999,2]
[350157300,1737660632582,-224.65855169,0.00018999,2]
[350157301,1737660632591,-302.96970909,0.00019,2]
[350157302,1737660632601,-89448.1992635,0.00019,2]
[350157303,1737660632610,-157.2516853,0.00019041,2]
[350157304,1737660632620,-159.414847,0.00019041,2]
[350157305,1737660632629,-153.0,0.00019041,2]
[350157306,1737660632638,-153.0,0.00019041,2]
[350157307,1737660632647,-153.0,0.00019041,2]
[350157308,1737660632782,-153.0,0.00019041,2]
[350157309,1737660632792,-153.0,0.00019041,2]
[350157310,1737660632801,-11610.37348112,0.00019043,2]
[350157311,1737660632811,-486.45356104,0.00019066,2]
[350157312,1737660632820,-3000.0,0.00019078,2]
[350157313,1737660632829,-162.25,0.00019078,2]
[350157314,1737660632839,-735.7969783,0.00019121,2]
[350157315,1737660632849,-502.54391737,0.00019177,2]
[350157316,1737660632858,-525.33618077,0.00019177,2]
[350157317,1737660632869,-500.0,0.00019178,2]
[350157318,1737660632878,-422.91801308,0.00019178,2]
[350157319,1737660632888,-500.0,0.00019178,2]
[350157320,1737660632897,-500.0,0.00019178,2]
[350157321,1737660632906,-500.0,0.00019178,2]
[350157322,1737660632915,-500.0,0.00019178,2]
[350157323,1737660632925,-500.0,0.00019178,2]
[350157324,1737660632934,-500.0,0.00019178,2]
[350157325,1737660632943,-266.40006304,0.00019178,2]
[350157326,1737660632952,-535.08743479,0.00019178,2]
[350157327,1737660632963,-500.0,0.00019178,2]
[350157328,1737660632974,-501.41594376,0.00019178,2]
[350157329,1737660632984,-617.99320134,0.00019178,2]
[350157330,1737660632993,-162.25477041,0.00019178,2]
[350157331,1737660633003,-501.27189013,0.00019178,2]
[350157332,1737660633012,-502.19082117,0.00019178,2]
[350157333,1737660633023,-501.67607826,0.00019178,2]
[350157334,1737660633036,-502.76119709,0.00019178,2]
[350157335,1737660633046,-500.0,0.00019178,2]
[350157336,1737660633056,-500.0,0.00019178,2]
[350157337,1737660633066,-500.0,0.00019178,2]
[350157338,1737660633076,-502.1781277,0.00019178,2]
[350157339,1737660633087,-500.0,0.00019178,2]
[350157340,1737660633097,-426.19038534,0.00019178,2]
[350157341,1737660633108,-500.0,0.00019178,2]
[350157342,1737660633119,-500.0,0.00019178,2]
[350157343,1737660633129,-500.0,0.00019178,2]
[350157344,1737660633139,-210.0,0.00019178,2]
[350157345,1737660633149,-500.0,0.00019178,2]
[350157346,1737660633159,-500.0,0.00019178,2]
[350157347,1737660633168,-500.0,0.00019178,2]
[350157348,1737660633178,-500.0,0.00019178,2]
[350157349,1737660633187,-510.62378845,0.00019178,2]
[350157350,1737660633197,-500.0,0.00019178,2]
[350157351,1737660633206,-500.0,0.00019178,2]
[350157352,1737660633216,-500.0,0.00019178,2]
[350157353,1737660633226,-500.0,0.00019178,2]
[350157354,1737660633238,-500.0,0.00019178,2]
[350157355,1737660633247,-500.0,0.00019178,2]
[350157356,1737660633257,-200.0,0.00019178,2]
[350157357,1737660633266,-500.0,0.00019178,2]
[350157358,1737660633276,-505.67619893,0.00019178,2]
[350157359,1737660633288,-639.0,0.00019178,2]
[350157360,1737660633298,-500.0,0.00019178,2]
[350157361,1737660633308,-262.14731574,0.00019178,2]
[350157362,1737660633317,-500.0,0.00019178,2]
[350157363,1737660633327,-500.0,0.00019178,2]
[350157364,1737660633336,-500.0,0.00019178,2]
[350157365,1737660633346,-502.35164064,0.00019178,2]
[350157366,1737660633356,-500.0,0.00019178,2]
[350157367,1737660633366,-500.0,0.00019178,2]
[350157368,1737660633375,-500.0,0.00019178,2]
[350157369,1737660633385,-506.45,0.00019178,2]
[350157370,1737660633394,-500.0,0.00019178,2]
[350157371,1737660633404,-500.0,0.00019178,2]
[350157372,1737660633413,-500.0,0.00019178,2]
[350157373,1737660633422,-500.0,0.00019178,2]
[350157374,1737660633431,-165.75052654,0.00019178,2]
[350157375,1737660633441,-272.73437271,0.00019178,2]
[350157376,1737660633451,-500.0,0.00019178,2]
[350157377,1737660633460,-500.0,0.00019178,2]
[350157378,1737660633469,-500.0,0.00019178,2]
[350157379,1737660633478,-500.0,0.00019178,2]
[350157380,1737660633487,-500.0,0.00019178,2]
[350157381,1737660633497,-500.0,0.00019178,2]
[350157382,1737660633506,-500.0,0.00019178,2]
[350157383,1737660633515,-504.46325699,0.00019178,2]
[350157384,1737660633525,-500.0,0.00019178,2]
[350157385,1737660633537,-500.0,0.00019178,2]
[350157386,1737660633546,-503.73265557,0.00019178,2]
[350157387,1737660633555,-500.0,0.00019178,2]
[350157388,1737660633564,-397.0008887,0.00019178,2]
[350157389,1737660633572,-500.0,0.00019178,2]
[350157390,1737660633581,-500.0,0.00019178,2]
[350157391,1737660633591,-500.0,0.00019178,2]
[350157392,1737660633600,-500.0,0.00019178,2]
[350157393,1737660633609,-526.22021059,0.00019178,2]
[350157394,1737660633619,-500.0,0.00019178,2]
[350157395,1737660633628,-500.0,0.00019178,2]
[350157396,1737660633637,-500.0,0.00019178,2]
[350157397,1737660633647,-500.0,0.00019178,2]
[350157398,1737660633657,-500.0,0.00019178,2]
[350157399,1737660633666,-500.0,0.00019178,2]
[350157400,1737660633682,-509.80014479,0.00019178,2]
[350157401,1737660633696,-500.0,0.00019178,2]
[350157402,1737660633710,-500.0,0.00019178,2]
[350157403,1737660633720,-500.0,0.00019178,2]
[350157404,1737660633730,-500.0,0.00019178,2]
[350157405,1737660633741,-500.0,0.00019178,2]
[350157406,1737660633751,-501.99234675,0.00019178,2]
[350157407,1737660633761,-504.02913143,0.00019178,2]
[350157408,1737660633770,-500.0,0.00019178,2]
[350157409,1737660633784,-502.46819966,0.00019178,2]
[350157410,1737660633795,-500.0,0.00019178,2]
[350157411,1737660633804,-500.0,0.00019178,2]
[350157412,1737660633814,-500.0,0.00019178,2]
[350157413,1737660633824,-500.0,0.00019178,2]
[350157414,1737660633833,-500.0,0.00019178,2]
[350157415,1737660633843,-500.0,0.00019178,2]
[350157416,1737660633853,-151.0,0.00019178,2]
[350157417,1737660633862,-151.0,0.00019178,2]
[350157418,1737660633873,-500.0,0.00019178,2]
[350157419,1737660633882,-500.0,0.00019178,2]
[350157420,1737660633892,-500.0,0.00019178,2]
[350157421,1737660633901,-533.80964002,0.00019178,2]
[350157422,1737660633911,-500.0,0.00019178,2]
[350157423,1737660633920,-505.85664522,0.00019178,2]
[350157424,1737660633930,-500.0,0.00019178,2]
[350157425,1737660633940,-500.0,0.00019178,2]
[350157426,1737660633949,-500.0,0.00019178,2]
[350157427,1737660633959,-500.0,0.00019178,2]
[350157428,1737660633969,-192.42485986,0.00019178,2]
[350157429,1737660633979,-500.0,0.00019178,2]
[350157430,1737660633988,-500.0,0.00019178,2]
[350157431,1737660633998,-500.0,0.00019178,2]
[350157432,1737660634007,-500.0,0.00019178,2]
[350157433,1737660634017,-500.0,0.00019178,2]
[350157434,1737660634027,-500.0,0.00019178,2]
[350157435,1737660634039,-500.0,0.00019178,2]
[350157436,1737660634049,-503.72189122,0.00019178,2]
[350157437,1737660634058,-500.0,0.00019178,2]
[350157438,1737660634067,-500.0,0.00019178,2]
[350157439,1737660634077,-334.19716381,0.00019178,2]
[350157440,1737660634087,-500.0,0.00019178,2]
[350157441,1737660634096,-152.957108,0.00019178,2]
[350157442,1737660634106,-228.01378121,0.00019178,2]
[350157443,1737660634116,-500.0,0.00019178,2]
[350157444,1737660634125,-153.062453,0.00019178,2]
[350157445,1737660634135,-500.0,0.00019178,2]
[350157446,1737660634145,-500.0,0.00019178,2]
[350157447,1737660634155,-500.0,0.00019178,2]
[350157448,1737660634164,-500.0,0.00019178,2]
[350157449,1737660634173,-500.0,0.00019178,2]
[350157450,1737660634184,-500.0,0.00019178,2]
[350157451,1737660634194,-500.0,0.00019178,2]
[350157452,1737660634203,-500.0,0.00019178,2]
[350157453,1737660634213,-500.0,0.00019178,2]
[350157454,1737660634223,-500.0,0.00019178,2]
[350157455,1737660634232,-500.0,0.00019178,2]
[350157456,1737660634242,-500.0,0.00019178,2]
[350157457,1737660634251,-500.0,0.00019178,2]
[350157458,1737660634261,-508.58993395,0.00019178,2]
[350157459,1737660634272,-500.0,0.00019178,2]
[350157460,1737660634283,-500.0,0.00019178,2]
[350157461,1737660634293,-500.0,0.00019178,2]
[350157462,1737660634303,-500.0,0.00019178,2]
[350157463,1737660634314,-500.0,0.00019178,2]
[350157464,1737660634324,-500.0,0.00019178,2]
[350157465,1737660634333,-500.0,0.00019178,2]
[350157466,1737660634343,-500.0,0.00019178,2]
[350157467,1737660634353,-500.0,0.00019178,2]
[350157468,1737660634363,-500.0,0.00019178,2]
[350157469,1737660634373,-500.0,0.00019178,2]
[350157470,1737660634383,-500.0,0.00019178,2]
[350157471,1737660634393,-500.0,0.00019178,2]
[350157472,1737660634402,-500.0,0.00019178,2]
[350157473,1737660634412,-500.0,0.00019178,2]
[350157474,1737660634421,-372.74747842,0.00019178,2]
[350157475,1737660634431,-500.0,0.00019178,2]
[350157476,1737660634440,-501.64314676,0.00019178,2]
[350157477,1737660634450,-500.0,0.00019178,2]
[350157478,1737660634460,-500.0,0.00019178,2]
[350157479,1737660634470,-500.0,0.00019178,2]
[350157480,1737660634480,-500.0,0.00019178,2]
[350157481,1737660634490,-500.0,0.00019178,2]
[350157482,1737660634499,-500.0,0.00019178,2]
[350157483,1737660634509,-500.0,0.00019178,2]
[350157484,1737660634519,-500.0,0.00019178,2]
[350157485,1737660634529,-500.0,0.00019178,2]
[350157486,1737660634540,-500.0,0.00019178,2]
[350157487,1737660634549,-874.17,0.00019178,2]
[350157488,1737660634559,-500.0,0.00019178,2]
[350157489,1737660634568,-500.0,0.00019178,2]
[350157490,1737660634577,-500.0,0.00019178,2]
[350157491,1737660634587,-500.0,0.00019178,2]
[350157492,1737660634596,-500.0,0.00019178,2]
[350157493,1737660634606,-500.0,0.00019178,2]
[350157494,1737660634615,-520.95675496,0.00019178,2]
[350157495,1737660634625,-500.0,0.00019178,2]
[350157496,1737660634634,-500.0,0.00019178,2]
[350157497,1737660634643,-500.0,0.00019178,2]
[350157498,1737660634652,-496.70395487,0.00019178,2]
[350157499,1737660634661,-367.81286835,0.00019178,2]